Cogmind - Beta 15 @@@ ROGUE MODE // 2025.06.09 @ 17:53:18 Player: BlobtheGreat Result: Self-destructed Performance ------------- Evolutions (2) 1000 Regions Visited (5) 1000 Robots Destroyed (66) 330 Value Destroyed (2001) 2001 Prototype IDs (29) 580 Alien Tech Used (0) 0 Bonus (300) 300 TOTAL SCORE: 5211 Bonus ------- Aligned with FarCom 300 Cogmind --------- Core Integrity 267/550 Matter 121/300 Energy 100/100 System Corruption 2% Temperature Cool (0) Movement Core (1350) Ox26 Location -8/Materials Parts ------- > --- POWER (1) -------- (None) > --- PROPULSION (4) --- Advanced Treads > --- UTILITY (4) ------ Huge Storage Unit > --- WEAPON (2) ------- Mini Grenade Launcher > --- INVENTORY (25) --- Improved Ion Engine Light Deuterium Engine Light Nuclear Core Light Nuclear Core Light Nuclear Core Aluminum Leg Aluminum Leg Small Storage Unit Machine Analyzer ECM Suite Weapon Shielding Hacking Suite Supersonic Drone Bay (1/1) Assault Rifle Assault Rifle Assault Rifle Heavy Assault Rifle Minigun High-powered Shotgun Light Cannon Grenade Launcher Grenade Launcher Mining Laser Peak State ------------ > --- POWER ------------ Ion Engine > --- PROPULSION ------- Light Treads Advanced Treads Wheel Wheel > --- UTILITY ---------- Huge Storage Unit Light Armor Plating Hardened Light Armor Plating Hacking Suite > --- WEAPON ----------- High-powered Shotgun High-powered Shotgun > --- INVENTORY -------- Light Ion Engine Light Deuterium Engine Light Nuclear Core Light Nuclear Core Light Nuclear Core Aluminum Leg Aluminum Leg Small Storage Unit Machine Analyzer ECM Suite Weapon Shielding Hacking Suite Supersonic Drone Bay Assault Rifle Assault Rifle Assault Rifle Assault Rifle Heavy Assault Rifle Light Cannon Grenade Launcher Grenade Launcher Mini Grenade Launcher Improved Grenade Launcher Mining Laser [Rating: 24] Favorites ----------- Power Ion Engine Engine Ion Engine Propulsion Light Treads Treads Light Treads Wheel Wheel Utility Huge Storage Unit Device Seismic Detector Storage Huge Storage Unit Hackware Hacking Suite Protection Light Armor Plating Weapon High-powered Shotgun Energy Gun EM Pulse Gun Ballistic Gun High-powered Shotgun Launcher Mini Grenade Launcher Special Weapon Mining Laser Build | -11 -10 -10 -10 -9 -8 ------- Run | Yrd Mat Min Exi Min Mat Slots Evolved 4 | . . . . . 4 Power . | . . . . . . Propulsion 2 | . . . . . 2 Utility 2 | . . . . . 2 Weapon . | . . . . . . Parts Attached 42 | 7 12 3 . 1 19 Power 4 | 1 1 . . . 2 Engine 4 | 1 1 . . . 2 Core . | . . . . . . Reactor . | . . . . . . Propulsion 10 | 2 2 1 . . 5 Treads 7 | 2 1 . . . 4 Leg . | . . . . . . Wheel 3 | . 1 1 . . 1 Hover . | . . . . . . Flight . | . . . . . . Utility 11 | 2 2 1 . . 6 Device 1 | 1 . . . . . Storage 2 | 1 1 . . . . Processor . | . . . . . . Hackware 1 | . . . . . 1 Protection 7 | . 1 1 . . 5 Artifact . | . . . . . . Weapon 17 | 2 7 1 . 1 6 Energy Gun 1 | . 1 . . . . Energy Cannon . | . . . . . . Ballistic Gun 12 | 2 4 1 . 1 4 Ballistic Cannon . | . . . . . . Launcher 3 | . 1 . . . 2 Special Weapon 1 | . 1 . . . . Impact Weapon . | . . . . . . Slashing Weapon . | . . . . . . Piercing Weapon . | . . . . . . Special Melee Weapon . | . . . . . . Unidentified Prototypes . | . . . . . . Parts Lost 26 | . 4 2 . . 20 Power 4 | . 1 . . . 3 Propulsion 9 | . 1 1 . . 7 Utility 8 | . 1 1 . . 6 Weapon 5 | . 1 . . . 4 Highest Loss Streak 8 | . 2 2 . . 8 To Critical Strikes 1 | . 1 . . . . Average Backups 21 | 3 16 23 24 25 23 Power 3 | . 2 3 3 3 4 Propulsion 4 | 2 5 5 5 5 2 Utility 5 | . 3 5 6 7 6 Weapon 8 | . 4 10 10 9 10 Tool/Special . | . . . . . . Unused Backups 15 | . . . . 1 14 Power 6 | . . . . . 6 Propulsion 2 | . . . . . 2 Utility 4 | . . . . . 4 Weapon 3 | . . . . 1 2 Tool/Special . | . . . . . . Average Slot Usage (%) 94 | . 97 96 100 100 90 Engine 11 | . 13 14 14 14 8 Treads 15 | . 15 16 14 14 17 Wheel 12 | . 11 11 14 14 11 Storage 11 | . 14 14 14 14 9 Hackware 3 | . . . . . 8 Protection 14 | . 11 10 14 14 17 Ballistic Gun 22 | . 26 28 28 23 17 Peak Build Rating 24 | 7 9 12 13 13 24 Average Rating 14 | 5 8 9 12 12 20 On Entrance 9 | . 7 9 12 13 13 Naked Turns . | . . . . . . Heaviest Build 101 | 11 93 93 93 93 101 Greatest Support 80 | 40 40 40 10 10 80 Greatest Overweight (x) 10 | . 5 9 9 9 10 Average Overweight (x) 5 | . 4 6 9 9 4 Largest Inventory Capacity 25 | 8 25 25 25 25 25 Average Capacity 24 | 7 24 25 25 25 25 Most Carried 25 | 6 24 25 25 25 25 Average Carried 21 | 4 16 23 24 25 23 Final Capacity 25 | 8 25 25 25 25 25 Final Carried 25 | 6 24 24 25 25 23 Class Distribution -------------------- 100% | Mutant Dominant Class ---------------- Mutant | -10/Materials Mutant | -10/Mines Mutant | -10/Exiles Mutant | -9/Mines Mutant | -8/Materials Resources | -11 -10 -10 -10 -9 -8 ----------- Run | Yrd Mat Min Exi Min Mat Matter Collected 1658 | 203 345 165 . 41 904 Remotely . | . . . . . . Salvage Created 1985 | 20 515 200 . 37 1213 Parts 145 | 5 48 10 . 2 80 Haulers Intercepted 1 | . 1 . . . . Recyclers Shooed . | . . . . . . Parts Field Recycled . | . . . . . . Retrieved Matter . | . . . . . . Parts Self-Destructed . | . . . . . . Prevented . | . . . . . . Kills | -11 -10 -10 -10 -9 -8 ------- Run | Yrd Mat Min Exi Min Mat Combat Hostiles Destroyed 59 | . 17 5 . 1 36 Guns 46 | . 14 5 . 1 26 AOE 13 | . 3 . . . 10 Classes Destroyed 11 | 1 5 . . . 5 Worker 1 | . . . . . 1 Builder 1 | . . . . . 1 Tunneler 1 | 1 . . . . . Hauler 1 | . 1 . . . . Operator 1 | . 1 . . . . Watcher 2 | . 2 . . . . Swarmer 19 | . 9 . . . 10 Grunt 29 | . 8 5 . 1 15 Duelist 1 | . . . . . 1 Sentry 8 | . . . . . 8 Specialist 2 | . . . . . 2 Best Kill Streak 7 | 1 4 3 . 1 7 Combat Bots Only 6 | . 4 3 . 1 6 Max Kills in Single Turn 4 | 1 2 1 . 1 4 Gunslinging 1 | . . . . . 1 Exploded 4 | . 2 . . . 4 Melee . | . . . . . . Uniques/NPCs Destroyed . | . . . . . . Combat | -11 -10 -10 -10 -9 -8 -------- Run | Yrd Mat Min Exi Min Mat Hostile Shots Fired 319 | . 121 26 . 2 170 Missed 76 | . 30 3 . . 43 Hits 243 | . 91 23 . 2 127 Melee 7 | . . . . . 7 Projectile 236 | . 91 23 . 2 120 AOE 1 | . . . . . 1 Critical Strikes 9 | . 1 1 . . 7 Damage Taken 3553 | . 905 283 . 21 2344 Core 519 | . 199 37 . . 283 Absorbed by Shields . | . . . . . . Redirected to Shielding 17 | . . . . . 17 Core Remaining (%) 52 | 100 . . . 5 . Volleys Fired 222 | 3 69 18 . 13 119 Largest 2 | 2 2 2 . 2 2 Hottest 100 | 40 100 45 . 100 50 Shots Fired 421 | 6 136 36 . 16 227 Gun 398 | 6 132 36 . 6 218 Cannon . | . . . . . . Launcher 12 | . 3 . . . 9 Special 11 | . 1 . . 10 . Kinetic 390 | 6 124 36 . 6 218 Thermal 11 | . 1 . . 10 . Explosive 12 | . 3 . . . 9 Electromagnetic 8 | . 8 . . . . Robot Hit Streak 14 | 2 14 12 . 5 10 Robot Miss Streak 6 | 2 5 4 . . 6 Penetration Max . | . . . . . . Secondary Targets 7 | . 3 . . . 4 Max Gunslinging Chain 1 | . 1 . . . 1 Shots Hit Robots 277 | 3 87 29 . 1 157 Core Hits 130 | 3 40 11 . 1 75 Critical Kills 1 | . . . . . 1 Critical Parts Destroyed 2 | . 1 1 . . . Critical Strikes 3 | . 1 1 . . 1 Destroy 3 | . 1 1 . . 1 Melee Attacks . | . . . . . . Impact . | . . . . . . Slashing . | . . . . . . Piercing . | . . . . . . Sneak Attacks . | . . . . . . Combat Hostiles . | . . . . . . Follow-up Attacks . | . . . . . . Damage Inflicted 4715 | 39 814 475 . 16 3371 Guns 3815 | 39 723 475 . 16 2562 Cannons . | . . . . . . Explosions 900 | . 91 . . . 809 Melee . | . . . . . . Ramming . | . . . . . . Kinetic 3792 | 39 700 475 . 16 2562 Thermal . | . . . . . . Explosive 900 | . 91 . . . 809 Electromagnetic 23 | . 23 . . . . Impact . | . . . . . . Slashing . | . . . . . . Piercing . | . . . . . . Highest Corruption 2 | . . . . . 2 Average Corruption 2 | . . . . . 2 Corruption Purged . | . . . . . . Corruption Blocked . | . . . . . . Effects 8 | . . . . . 8 Matter Fused 4 | . . . . . 4 Heat Flow Errors 1 | . . . . . 1 Energy Discharges 1 | . . . . . 1 Data Loss (minor) 2 | . . . . . 2 Overload Shots . | . . . . . . Overflow Damage 82 | . . . . . 82 Projectiles . | . . . . . . Explosions 82 | . . . . . 82 Melee . | . . . . . . Knockbacks . | . . . . . . Impact . | . . . . . . Kinetic . | . . . . . . Secondary . | . . . . . . Self-Inflicted Damage 85 | . 35 . . . 50 Shots 3 | . 1 . . . 2 Rammed . | . . . . . . Targets Rammed . | . . . . . . Kicked . | . . . . . . Crushed . | . . . . . . Highest Temperature 130 | . 70 36 . 96 130 Average Temperature 19 | . 14 14 . 48 13 Received Heat Transfer 1242 | . 231 180 . 12 819 Siege Activations . | . . . . . . Martial Activations . | . . . . . . Shielding Activations . | . . . . . . Robots Disrupted . | . . . . . . Combat Hostiles . | . . . . . . Robots Corrupted . | . . . . . . Combat Hostiles . | . . . . . . Parts Fried . | . . . . . . Impact Corruptions . | . . . . . . Robots Melted . | . . . . . . Combat Hostiles . | . . . . . . Parts Melted . | . . . . . . Heat Transferred . | . . . . . . Parts Sabotaged . | . . . . . . Parts Stolen . | . . . . . . Parts Stripped . | . . . . . . Power Chain Reactions . | . . . . . . Alert | -11 -10 -10 -10 -9 -8 ------- Run | Yrd Mat Min Exi Min Mat Maximum Alert Level 1 | . . . . . 1 Low Security (%) 98 | 100 100 100 . 100 96 Level 1 1 | . . . . . 3 Level 2 . | . . . . . . Level 3 . | . . . . . . Level 4 . | . . . . . . Level 5 . | . . . . . . High Security . | . . . . . . Max Security . | . . . . . . Peak Influence 388 | 5 148 70 . 20 388 Initial 40 | . 3 40 . . . Average 43 | . 62 22 . 1 46 Influence Increases 1712 | 5 511 120 . 23 1053 Destroy 0b10 Robot/C 1180 | . 340 100 . 20 720 Destroy 0b10 Robot/NC 35 | 5 20 . . . 10 Destroy Leader 256 | . 66 20 . . 170 Successful Hack 35 | . 22 . . . 13 Disable Machine 15 | . . . . . 15 Destroy Structure 86 | . 18 . . 3 65 Partial Spotted 15 | . 15 . . . . Lose Combat Pursuer 90 | . 30 . . . 60 Influence Decreases 1350 | . 411 205 20 23 691 Entered New Map 87 | . 2 65 20 . . Time Decay 1001 | . 399 130 . 23 449 Lost Part 199 | . 10 10 . . 179 Purge Threat 63 | . . . . . 63 Squads Dispatched 13 | . 2 1 . . 10 Investigation 4 | . 1 1 . . 2 Extermination . | . . . . . . Reinforcement 6 | . 1 . . . 5 Assault . | . . . . . . Garrison 3 | . . . . . 3 Intercept . | . . . . . . Searches Triggered . | . . . . . . Construction Impeded 1 | . . . . . 1 Haulers Reinforced . | . . . . . . Active Scanning Responses . | . . . . . . Cargo Convoy Interrupts . | . . . . . . Stealth | -11 -10 -10 -10 -9 -8 --------- Run | Yrd Mat Min Exi Min Mat Distress Signals 7 | . 1 . . . 6 Communications Jammed . | . . . . . . Distress Signals . | . . . . . . Times Spotted 89 | . 24 5 . 1 59 Peak Tracking Total 8 | . 5 3 . 1 8 Tactical Retreats 4 | . 1 . . . 3 Traps | -11 -10 -10 -10 -9 -8 ------- Run | Yrd Mat Min Exi Min Mat Traps Triggered 3 | . 1 . . . 2 Indirectly . | . . . . . . Trap Hack Attempts . | . . . . . . Triggered . | . . . . . . Disarmed . | . . . . . . Reprogrammed . | . . . . . . Reused . | . . . . . . Traps Extracted . | . . . . . . Installed . | . . . . . . Triggered . | . . . . . . Machines | -11 -10 -10 -10 -9 -8 ---------- Run | Yrd Mat Min Exi Min Mat Machines Disabled 1 | . . . . . 1 Max in Single Turn 1 | . . . . . 1 Garrison Access 1 | . . . . . 1 Machines Repaired . | . . . . . . Machines Dismantled . | . . . . . . Machines Sabotaged . | . . . . . . Overloaded Fab Kills . | . . . . . . Hacking | -11 -10 -10 -10 -9 -8 --------- Run | Yrd Mat Min Exi Min Mat Machines Accessed 18 | . 7 1 1 . 9 Terminals 14 | . 7 . . . 7 Fabricators . | . . . . . . Repair Stations . | . . . . . . Recycling Units . | . . . . . . Scanalyzers 1 | . . . . . 1 Garrison Access 1 | . . . . . 1 Total Hacks 37 | . 18 1 1 . 17 Successful 17 | . 6 1 1 . 9 Failed 19 | . 12 . . . 7 Catastrophic 1 | . 1 . . . . Database Lockouts 1 | . . . . . 1 Manual 29 | . 17 . 1 . 11 Terminals 32 | . 18 . . . 14 Fabricators . | . . . . . . Repair Stations . | . . . . . . Recycling Units . | . . . . . . Scanalyzers 2 | . . . . . 2 Garrison Access 1 | . . . . . 1 Terminal Hacks 14 | . 6 1 1 . 6 Part Schematic 1 | . . . . . 1 Robot Analysis 3 | . 3 . . . . Prototype ID Bank 3 | . 2 . . . 1 Open Door 1 | . . 1 . . . Unreport Threat 1 | . . . . . 1 Hauler Manifests 3 | . 1 . . . 2 Registered Prototypes 1 | . . . . . 1 Proto ID Catalog 1 | . . . 1 . . Fabricator Hacks . | . . . . . . Repair Station Hacks . | . . . . . . Recycling Unit Hacks . | . . . . . . Scanalyzer 2 | . . . . . 2 Insert Component 1 | . . . . . 1 Analyze 1 | . . . . . 1 Garrison Access Hacks 1 | . . . . . 1 Seal Access 1 | . . . . . 1 Unauthorized Hacks . | . . . . . . Terminals . | . . . . . . Fabricators . | . . . . . . Repair Stations . | . . . . . . Recycling Units . | . . . . . . Scanalyzers . | . . . . . . Garrison Access . | . . . . . . Data Cores Recovered . | . . . . . . Used . | . . . . . . Hacking Detections 12 | . 6 . . . 6 Full Trace Events 3 | . 1 . . . 2 Feedback Events . | . . . . . . Feedback Blocked . | . . . . . . Robot Schematics Acquired . | . . . . . . Robots Built . | . . . . . . Authchips . | . . . . . . Time . | . . . . . . Total Robot Build Rating . | . . . . . . Part Schematics Acquired 2 | . . . . . 2 Parts Built . | . . . . . . Authchips . | . . . . . . Time . | . . . . . . Total Part Build Rating . | . . . . . . Parts Repaired . | . . . . . . Time . | . . . . . . Parts Recycled . | . . . . . . Recycled Matter . | . . . . . . Retrieved Matter . | . . . . . . Retrieved Components . | . . . . . . Parts Scanalyzed 1 | . . . . . 1 Part Schematics Acquired 1 | . . . . . 1 Parts Damaged . | . . . . . . Bothacking | -11 -10 -10 -10 -9 -8 ------------ Run | Yrd Mat Min Exi Min Mat Used RIF Installer . | . . . . . . Robots Hacked . | . . . . . . Non-combat . | . . . . . . Combat . | . . . . . . Robot Hacks Applied . | . . . . . . Relay Couplers Released . | . . . . . . Fabnet Peak Effective % . | . . . . . . Robots Rewired . | . . . . . . Allies Hacked . | . . . . . . Hacks Repelled . | . . . . . . Allies | -11 -10 -10 -10 -9 -8 -------- Run | Yrd Mat Min Exi Min Mat Total Allies . | . . . . . . Largest Group . | . . . . . . Highest-Rated Group . | . . . . . . Highest-Rated Ally . | . . . . . . Total Orders . | . . . . . . Ally Attacks . | . . . . . . Total Damage . | . . . . . . Kills . | . . . . . . Allies Corrupted . | . . . . . . Allies Melted . | . . . . . . Intel | -11 -10 -10 -10 -9 -8 ------- Run | Yrd Mat Min Exi Min Mat Active Infowar (turns) 145 | 6 139 . . . . Seismic 145 | 6 139 . . . . Robot Analysis Total 3 | . 3 . . . . Derelict Logs Recovered 1 | . . . . 1 . Drone Launches . | . . . . . . Drone Recoveries . | . . . . . . Exploration | -11 -10 -10 -10 -9 -8 ------------- Run | Yrd Mat Min Exi Min Mat Turns Passed 4990 | 97 1297 344 795 441 2016 Spaces Moved 2099 | 53 567 128 370 163 818 Core 10 | 10 . . . . . Treads 252 | 43 51 19 . . 139 Legs . | . . . . . . Wheels 1837 | . 516 109 370 163 679 Hover . | . . . . . . Flight . | . . . . . . Fastest Speed 50 | 50 160 175 215 215 140 Average Speed 188 | 139 186 214 215 215 170 Slowest Speed 320 | 160 320 320 215 215 320 Overloaded Moves . | . . . . . . Propulsion Burnouts . | . . . . . . Robots Hopped . | . . . . . . Potential Cave-ins . | . . . . . . Cave-ins Triggered . | . . . . . . Exploration Rate (%) 56 | 4 96 36 87 47 69 Regions Visited 5 Branch Regions 3 Pre-discovered Areas 1 | . . . . 1 . Known Exits Taken . | . . . . . . Unknown Exits Taken 5 | 1 1 1 1 1 . Scrap Searched 2 | . . 1 . 1 . Spaces Dug 1 | . 1 . . . . Terrain Destroyed 91 | . 17 . . 4 70 Melee . | . . . . . . Projectile 5 | . 1 . . 4 . AOE 86 | . 16 . . . 70 Terrain Rammed . | . . . . . . Walls Destroyed . | . . . . . . Machines Disabled . | . . . . . . Actions | -11 -10 -10 -10 -9 -8 --------- Run | Yrd Mat Min Exi Min Mat Total 2718 | 68 684 162 370 218 1216 Wait 302 | . 17 5 . 39 241 Move 2094 | 52 566 127 369 162 818 Hop . | . . . . . . Pick Up 41 | 6 19 5 1 1 9 Fast Attach 15 | 7 . . . . 8 Attach 18 | . 4 2 . . 12 Detach 2 | . . . . . 2 Swap 19 | . 9 2 . 2 6 Drop 5 | . . 3 . 1 1 Fire 222 | 3 69 18 . 13 119 Melee . | . . . . . . Ram . | . . . . . . Kick . | . . . . . . Crush . | . . . . . . Escape Stasis . | . . . . . . Rewire . | . . . . . . Trap . | . . . . . . Miscellaneous . | . . . . . . Route ------- -11/Scrapyard -10/Materials (discovered 5 exits: [*Mat x3] / *Min / [*Sub]) -10/Mines (discovered 2 exits: [*Mat] / *Exi) -10/Exiles (discovered 2 exits: [*Min x2]) -9/Mines -8/Materials (discovered 3 exits: *Fac x3) History --------- Turn | Location | Event 5 | -11/Scrapyard | Discovered new exit (range 15) 98 | -11/Scrapyard | Entered Materials 316 | -10/Materials | Build established: Mutant 518 | -10/Materials | Discovered new exit (range 10) 709 | -10/Materials | Core integrity fell below 50% 746 | -10/Materials | Discovered new exit (range 10) 1214 | -10/Materials | Discovered new exit (range 13) 1318 | -10/Materials | Discovered new exit (range 14) 1334 | -10/Materials | Discovered new exit (range 8) 1395 | -10/Materials | Entered Mines 1397 | -10/Mines | Discovered new exit (range 16) 1492 | -10/Mines | Core integrity fell below 20% 1560 | -10/Mines | Met a Derelict shopkeep closing up shop 1717 | -10/Mines | Deemed a non-threat by the Exiles lab entrance 1717 | -10/Mines | Discovered new exit (range 5) 1739 | -10/Mines | Entered Exiles 1767 | -10/Exiles | Discovered new exit (range 15) 1815 | -10/Exiles | Met 8R-AWN 1853 | -10/Exiles | Met EX-HEX 1914 | -10/Exiles | Met EX-BIN 1939 | -10/Exiles | Aligned with FarCom system 1942 | -10/Exiles | Given EX-Vault access code 1991 | -10/Exiles | Opened EX-Vault 2006 | -10/Exiles | Found Supersonic Drone Bay 2052 | -10/Exiles | Warned to stay clear of 0b10 Research branches 2123 | -10/Exiles | Met EX-DEC 2223 | -10/Exiles | Visited The Gauntlet 2517 | -10/Exiles | Discovered new exit (range 10) 2534 | -10/Exiles | Left Exiles lab with Supersonic Drone Bay 2534 | -10/Exiles | Entered Mines 2535 | -9/Mines | Learned location of Storage (-7) 2573 | -9/Mines | Excavation squad dispatched 2573 | -9/Mines | A large section of the Mines collapsed 2823 | -9/Mines | Excavation squad dispatched 2951 | -9/Mines | Discovered new exit (range 12) 2975 | -9/Mines | Entered Materials 2975 | -8/Materials | Evolved 4 slots: Propulsion x2, Utility x2 2976 | -8/Materials | Identified exit to Factory 3378 | -8/Materials | Garrison activated, responded to threat 3488 | -8/Materials | Lost 5 parts (1p1n2u1w) 3902 | -8/Materials | Discovered exit to Factory (range 12) 4147 | -8/Materials | Discovered exit to Factory (range 11) 4736 | -8/Materials | Central database locked down 4984 | -8/Materials | Core integrity fell below 50% 4991 | -8/Materials | Self-destructed Last Messages --------------- 04972_ S-10 Pest destroyed. 04981_ Destroyed Lgt. Ion Engine. 04981_ Purification Channel disabled. 04983_ Assault Rifle destroyed. 04983_ Destroyed Assault Rifle. 04983_ H-61 Shepherd calls for reinforcements. 04983_ ALERT: Hostile activity reported, dispatching reinforcements to area. 04983_ Lgt. Armor Plating destroyed. 04984_ ALERT: Construction progress impeded, dispatching reinforcements to local area. 04985_ U-05 Engineer destroyed. 04986_ The unstable cave ceiling collapses. 04986_ K-01 Serf collects debris. 04988_ Wheel destroyed. 04988_ Hrd. Light Armor Plating destroyed. 04988_ Knocked back. 04989_ Acquired 3 matter. 04990_ K-01 Serf collects debris. 04990_ Ion Engine destroyed. Map ----- +----------------------------------------------------+ | ???????????????????????????????????????? | | ???????????????????????????????????????? | | ???????????????????????????????????????? | | ???????????????????????????????????????? | | ???????????????????????????????????????? | | ???????????????????????????????????????? | | ???????????????????????????????????????? | | ???????????????????????????????????????? | | ???????????????????????????????????????? | | ???????????????????????????????????????? | | ???????????????????????????????????????? | | ???????????????????????????????????????? | | ???????????????????????????????????????? | | ??????????????????????????????????????## | | ??????????????????????Y???????????? | | ??????Y???????????????????????????? | | ??????????????????????????????????????## | | ????##############?????????????????????? | | ????# #?????????????????????? | | ????#* " """"" #?????????????????????? | | ????# """"""""" #??????????g??????????? | | ????#! """ """ #?????????????????????? | | ????# #????????g?g??????????? | | ?????######+#;##;####??????????????????? | | ?????????# % ####???????????????? | | ???####### @ +???????????????? | | ???# =^ ##???????????????? | | ???# #######[ #???????????????? | | ???# #?????#* % #???????????????? | | ???# #?????#! % ##???????????????? | | ???# #?????#=# #????????????????? | | ???# #??####;# #????????????????? | | ?### ####==!%!* ! ???????????????? | | ?# ##[g"""[ "??????????????? | | ?# ## %"""! %H ""?????????????? | | ?# " ## g"""! ""?????????????? | | ?# ## ?????????????? | | ?# ## ! ####?????????????? | | ?## #### ## ##????????????????? | | ??# ### % k ???################ | | ?## """ g %= ?? | | ?#" g ?? | | ?## ########## ?? | | ??# % #??? ??? ######### | | ??# #???? ???? "???????? | | ??# #????? # ???????? "???????? | | ??# #?????? +????? ???? T??????## | | ??# #???????? #?????? """ "??????# | | ??## ##?????????#?????" """ "??????# | | ???# #????????????? ?"" """ #??????# | +----------------------------------------------------+ Best States ------------- Heat Dissipation 31 Energy Generation 12 Energy Capacity 265 Matter Stores 300 Matter Capacity 300 Sight Range 16 Terrain Scan Density 10 Armor Coverage 300 Weapon Shielding 33 Evasion (%) 40 Recoil Reduction 4 Offensive Hacking 10 Item Schematics ----------------- Hrd. Light Armor Plating | -8/Materials | Scanalyzed Imp. Flight Unit | -8/Materials | Hacked Robot Schematics ------------------ None Fabricated ------------ Nothing Repaired ---------- Nothing Alien Tech Used ----------------- None Achievements -------------- Armchair Analyst Challenges ------------ None Game ------ Seed SlugThunderBank Manual? 0 Play Time 00:41:14 Cumulative 17.5 hours Start 2025.06.09 @ 17:08:48 End 2025.06.09 @ 17:53:18 Sessions 1 Manual Loads 0 Difficulty Rogue Special Mode None Game No. 22 Rogue 22 Adventurer 0 Explorer 0 Win Type - Total 0 Types 0/0/0/0/0/0/0/0/0/0 Lore% 17 Gallery% 20 Achievement% 20 Wizard Run 0 Options --------- Layout 1 ASCII 0 Keyboard 0 Movement Mouse Keybinds 0 Fullscreen 1 Font 24/Smallcaps Map View 50x40 Zoom Use 0% Tactical HUD 1 Map Filters NONE Filters NONE Steam 1 RUN: b254a533-fb08-48a4-84f2-131a747a5264